bitfinex-derivatives/quotes_BTCF0:USTF0_20251111
["timestamp","ask_amount","ask_price","bid_price","bid_amount"]
[1762869715472,0.5024398,104400.0,104390.0,0.36819935]
[1762869715678,0.5024398,104400.0,104390.0,0.37019935]
[1762869716373,0.5024398,104400.0,104390.0,0.36719935]
[1762869716568,0.5024398,104400.0,104390.0,0.00330668]
[1762869717383,0.5024398,104400.0,104390.0,0.00230668]
[1762869717677,0.5044398,104400.0,104390.0,0.00450471]
[1762869718277,0.5044398,104400.0,104390.0,0.02569471]
[1762869718473,0.5044398,104400.0,104390.0,0.02369471]
[1762869718670,0.5054398,104400.0,104390.0,0.00250471]
[1762869718875,0.47093692,104400.0,104390.0,0.00250471]
[1762869720975,0.47093692,104400.0,104390.0,0.09831371]
[1762869721171,1.03917377,104400.0,104390.0,0.00030668]
[1762869721477,0.1534782,104380.0,104370.0,0.06866791]
[1762869721682,0.1534874,104370.0,104360.0,0.20810371]
[1762869721877,0.05766,104370.0,104360.0,0.74469859]
[1762869722174,0.05766,104370.0,104360.0,0.75382859]
[1762869722374,0.0577272,104370.0,104360.0,0.75382859]
[1762869722769,0.0577272,104370.0,104360.0,0.38836367]
[1762869723081,0.1535546,104370.0,104360.0,0.75452367]
[1762869723585,0.0577272,104370.0,104360.0,0.75452367]
[1762869723767,0.1535546,104370.0,104360.0,0.58828682]
[1762869723972,0.1535546,104370.0,104360.0,0.75652367]
[1762869724277,0.1535546,104370.0,104360.0,0.75648367]
[1762869724673,0.0577272,104370.0,104360.0,0.75448367]
[1762869724983,6.72e-05,104370.0,104360.0,0.76939367]
[1762869725481,0.0451172,104370.0,104360.0,0.76939367]
[1762869725976,0.1409446,104370.0,104360.0,0.76939367]
[1762869726179,0.1409446,104370.0,104360.0,0.79248602]
[1762869726483,0.1635546,104370.0,104360.0,0.42274311]
[1762869726680,0.5035546,104370.0,104360.0,0.51857961]
[1762869726869,0.5035546,104370.0,104360.0,0.41291803]
[1762869728280,0.5035546,104370.0,104360.0,0.36931803]
[1762869729684,0.6948838,104370.0,104350.0,0.00014384]
[1762869729981,0.1534965,104360.0,104350.0,0.00234187]
[1762869730172,0.4734965,104360.0,104350.0,0.04594187]
[1762869730381,0.4734965,104360.0,104350.0,0.15569757]
[1762869730576,0.4734965,104360.0,104350.0,0.14178757]
[1762869730879,0.4734965,104360.0,104350.0,0.15569757]
[1762869731080,0.4734965,104360.0,104350.0,0.04894187]
[1762869731786,0.4734965,104360.0,104350.0,0.15869757]
[1762869731984,0.4608865,104360.0,104350.0,0.34802677]
[1762869732186,0.36505,104360.0,104350.0,0.35002677]
[1762869732890,0.1409508,104370.0,104360.0,0.1533465]
[1762869733185,0.3951172,104370.0,104360.0,0.71315373]
[1762869733391,0.35,104370.0,104360.0,0.71315373]
[1762869733978,0.4458273,104370.0,104360.0,0.71315373]
[1762869734178,0.4908773,104370.0,104360.0,0.52182453]
[1762869734480,0.4908773,104370.0,104360.0,0.52282453]
[1762869734989,0.39505,104370.0,104360.0,0.71415373]
[1762869735188,0.37244,104370.0,104360.0,0.71415373]
[1762869735389,0.35,104370.0,104360.0,0.71415373]
[1762869737379,0.35,104370.0,104360.0,0.73415373]
[1762869737786,0.35,104370.0,104360.0,0.80282164]
[1762869738687,0.4458273,104370.0,104360.0,0.80282164]
[1762869739276,0.35,104370.0,104360.0,0.80282164]
[1762869739486,0.35,104370.0,104360.0,0.73415373]
[1762869739690,0.35,104370.0,104360.0,0.80286579]
[1762869740290,0.35,104370.0,104360.0,0.73415373]
[1762869740694,0.4458273,104370.0,104360.0,0.73415373]
[1762869740882,0.4458273,104370.0,104360.0,0.71415373]
[1762869741083,0.35,104370.0,104360.0,0.71415373]
[1762869741284,0.35,104370.0,104360.0,0.52282453]
[1762869741581,0.35,104370.0,104360.0,0.71415373]
[1762869741785,0.35,104370.0,104360.0,0.78288273]
[1762869741981,0.4458273,104370.0,104360.0,0.78288273]
[1762869742590,0.4912473,104370.0,104360.0,0.78288273]
[1762869742978,0.4912473,104370.0,104360.0,0.22527353]
[1762869743187,0.4912473,104370.0,104360.0,0.59131353]
[1762869743598,0.4912473,104370.0,104360.0,0.49547703]
[1762869744090,0.4922473,104370.0,104360.0,0.49547703]
[1762869744790,0.4932473,104370.0,104360.0,0.49447703]
[1762869744989,0.4932473,104370.0,104360.0,0.59031353]
[1762869745189,0.4932473,104370.0,104360.0,0.49447703]
[1762869745377,0.4932473,104370.0,104360.0,0.12843703]
[1762869745580,0.6855765,104370.0,104360.0,0.068729]
[1762869745790,0.1401965,104360.0,104350.0,0.49148284]
[1762869745986,0.4501965,104360.0,104350.0,0.58952657]
[1762869747384,0.4511965,104360.0,104350.0,0.58952657]
[1762869747882,0.4511965,104360.0,104350.0,0.78085577]
[1762869748689,0.4511965,104360.0,104350.0,0.52079757]
[1762869748891,0.4511965,104360.0,104350.0,0.71212677]
[1762869749091,0.4511965,104360.0,104350.0,0.52079757]
[1762869749292,0.4511965,104360.0,104350.0,0.78085577]
[1762869749489,0.4511965,104360.0,104350.0,0.52079757]
[1762869749793,0.4511965,104360.0,104350.0,0.78085577]
[1762869749988,0.4511965,104360.0,104350.0,0.58952657]
[1762869750586,0.4511965,104360.0,104350.0,0.49368087]
[1762869750993,0.4638065,104360.0,104350.0,0.49368087]
[1762869751494,0.4511965,104360.0,104350.0,0.78085577]
[1762869751700,0.33238,104360.0,104350.0,0.78085577]
[1762869751896,0.311,104360.0,104350.0,0.78085577]
[1762869752098,0.001,104360.0,104350.0,0.81793521]
[1762869752402,0.001,104360.0,104350.0,0.79793521]
[1762869753401,0.001,104360.0,104350.0,0.60660601]
[1762869753701,0.001,104360.0,104350.0,0.79793521]
[1762869753907,0.0968365,104360.0,104350.0,0.79793521]
[1762869754086,0.0968365,104360.0,104350.0,0.60660601]
[1762869754290,0.0968365,104360.0,104350.0,0.79793521]
[1762869754498,0.1411965,104360.0,104350.0,0.24048601]
[1762869754800,0.1911965,104360.0,104350.0,0.51068031]
[1762869754993,0.1911965,104360.0,104350.0,0.49370192]
[1762869755193,0.4738065,104360.0,104350.0,0.36838187]
[1762869755589,0.4611965,104360.0,104350.0,0.42495187]
[1762869757003,0.4611965,104360.0,104350.0,0.49378192]
[1762869758001,0.4168365,104360.0,104350.0,0.71212677]
[1762869758202,0.4168365,104360.0,104350.0,0.52079757]
[1762869758400,0.321,104360.0,104350.0,0.71212677]
[1762869758605,0.321,104360.0,104350.0,0.78095682]
[1762869759514,0.4168365,104360.0,104350.0,0.78095682]
[1762869760600,0.4611965,104360.0,104350.0,0.68511112]
[1762869760802,0.4611965,104360.0,104350.0,0.58962762]
[1762869761303,0.4611965,104360.0,104350.0,0.78095682]
[1762869762598,0.321,104360.0,104350.0,0.78095682]
[1762869762900,0.001,104360.0,104350.0,0.78095682]
[1762869763706,0.001,104360.0,104350.0,0.58962762]
[1762869764008,0.001,104360.0,104350.0,0.78095682]
[1762869764398,0.001,104360.0,104350.0,0.71212677]
[1762869765001,0.0968365,104360.0,104350.0,0.71212677]
[1762869766109,0.2411965,104360.0,104350.0,0.42491187]
[1762869767199,0.2411965,104360.0,104350.0,0.52075757]
[1762869767508,0.2411965,104360.0,104350.0,0.60656601]
[1762869768412,0.101,104360.0,104350.0,0.79789521]
[1762869768810,0.001,104360.0,104350.0,0.79789521]
[1762869769112,0.001,104360.0,104350.0,0.88720925]
[1762869769312,0.0968365,104360.0,104350.0,0.52075757]
[1762869769613,0.0968365,104360.0,104350.0,0.80140081]
[1762869770012,0.0968365,104360.0,104350.0,0.88748141]
[1762869770208,0.0968365,104360.0,104350.0,0.80140081]
[1762869772012,0.0968365,104360.0,104350.0,0.64121735]
[1762869772207,0.06232701,104360.0,104350.0,0.92186059]
[1762869773015,0.141114,104370.0,104360.0,0.1537725]
[1762869773217,0.141114,104370.0,104360.0,0.24209949]
[1762869773516,0.461114,104370.0,104360.0,0.24209949]
[1762869774208,0.463114,104370.0,104360.0,0.24209949]
[1762869774409,0.463114,104370.0,104360.0,0.24210349]
[1762869774914,0.464114,104370.0,104360.0,0.14626699]
[1762869776118,0.464114,104370.0,104360.0,0.45865108]
[1762869776621,0.464114,104370.0,104360.0,0.43695108]
[1762869776806,0.74475724,104370.0,104360.0,0.06891305]
[1762869777406,0.464114,104370.0,104360.0,0.06891305]
[1762869777815,0.1537265,104360.0,104350.0,0.06905689]
[1762869778009,0.4737265,104360.0,104350.0,0.07125492]
[1762869778209,0.75436974,104360.0,104350.0,0.00234187]
[1762869778708,0.75436974,104360.0,104350.0,0.00014384]
[1762869779311,0.04379,104340.0,104330.0,0.12490305]
[1762869779513,0.4822548,104340.0,104330.0,0.07111108]
[1762869779712,0.43512279,104340.0,104330.0,0.08474108]
[1762869780312,0.43512279,104340.0,104330.0,0.10664108]
[1762869780818,0.33,104340.0,104330.0,0.06005803]
[1762869781006,0.10580979,104390.0,104370.0,0.01363]
[1762869781215,0.0958181,104380.0,104370.0,0.05905803]
[1762869781509,0.4458181,104380.0,104370.0,0.01582803]
[1762869781916,0.0958273,104370.0,104360.0,0.05686]
[1762869782122,0.4658273,104370.0,104360.0,0.05905803]
[1762869782317,0.4658273,104370.0,104360.0,0.01582803]
[1762869782715,0.4658273,104370.0,104360.0,0.15489453]
[1762869782911,0.37,104370.0,104360.0,0.22380758]
[1762869783626,0.4658273,104370.0,104360.0,0.22380758]
[1762869784020,0.4688273,104370.0,104360.0,0.22380758]
[1762869784925,0.4688273,104370.0,104360.0,0.12797108]
[1762869785224,0.4688273,104370.0,104360.0,0.22380758]
[1762869785619,0.373,104370.0,104360.0,0.22380758]
[1762869785820,0.375,104370.0,104360.0,0.22380758]
[1762869786022,0.4678273,104370.0,104360.0,0.22380758]
[1762869786225,0.4688273,104370.0,104360.0,0.22380758]
[1762869786421,0.4668273,104370.0,104360.0,0.12797108]
[1762869786616,0.74847054,104370.0,104360.0,0.01582803]
[1762869786816,0.74747054,104370.0,104360.0,0.38222803]
[1762869787021,0.74947054,104370.0,104360.0,0.38222803]
[1762869787325,0.4688273,104370.0,104360.0,0.38222803]
[1762869788823,0.0958365,104360.0,104350.0,0.01377384]
[1762869789026,0.73647974,104360.0,104350.0,0.00234187]
[1762869789835,0.73647974,104360.0,104350.0,0.00014384]
[1762869790031,1.13647974,104360.0,104350.0,0.00014384]
[1762869790629,1.13747974,104360.0,104350.0,0.00014384]
[1762869792136,1.13647974,104360.0,104350.0,0.00014384]
[1762869792439,0.73847974,104360.0,104350.0,0.00014384]
[1762869792638,1.13947974,104360.0,104350.0,0.00014384]
[1762869793846,0.73947974,104360.0,104350.0,0.00014384]
[1762869794045,1.13947974,104360.0,104350.0,0.00014384]
[1762869794538,0.8253165,104360.0,104350.0,0.05920187]
[1762869794741,0.4588365,104360.0,104350.0,0.05920187]
[1762869795544,0.4588365,104360.0,104350.0,0.15504757]
[1762869795842,0.4588365,104360.0,104350.0,0.05920187]
[1762869796233,0.4588365,104360.0,104350.0,0.15504757]
[1762869796432,0.4588365,104360.0,104350.0,0.05920187]
[1762869796843,0.4588365,104360.0,104350.0,0.15504757]
[1762869797343,0.4588365,104360.0,104350.0,0.05920187]
[1762869799945,1.47159924,104360.0,104330.0,0.08254305]
[1762869800140,0.0958549,104340.0,104330.0,0.10703108]
[1762869800446,0.4558549,104340.0,104330.0,0.06128803]
[1762869801234,0.4558549,104340.0,104330.0,0.06228803]
[1762869801550,0.4558549,104340.0,104330.0,0.15815203]
[1762869801848,0.4558549,104340.0,104330.0,0.06228803]
[1762869802249,0.4558549,104340.0,104330.0,0.15815203]
[1762869803654,0.00014384,104350.0,104330.0,0.67815203]
[1762869803845,0.04502,104370.0,104360.0,0.05909]
[1762869804044,0.40502,104370.0,104360.0,0.15712453]
[1762869804354,0.5008473,104370.0,104360.0,0.15712453]
[1762869804744,0.5008473,104370.0,104360.0,0.06128803]
[1762869805652,0.5008473,104370.0,104360.0,0.15712453]
[1762869805852,0.5008473,104370.0,104360.0,0.42804803]
[1762869806852,0.5028473,104370.0,104360.0,0.42804803]
[1762869807157,0.5038473,104370.0,104360.0,0.40487803]
[1762869808244,0.78449054,104370.0,104360.0,0.00219803]
[1762869810452,0.1408565,104360.0,104350.0,0.00014384]
[1762869810657,0.1408565,104360.0,104350.0,3.84e-06]
[1762869810658,0.78149974,104360.0,104350.0,3.84e-06]
[1762869811057,1.18149974,104360.0,104350.0,3.84e-06]
[1762869813459,0.78149974,104360.0,104350.0,3.84e-06]
[1762869813949,0.5008565,104360.0,104350.0,0.02464187]
[1762869814255,0.5008565,104360.0,104350.0,0.14365757]
[1762869814756,0.5018565,104360.0,104350.0,0.14365757]
[1762869815455,0.5018565,104360.0,104350.0,0.04781187]
[1762869815858,0.5008565,104360.0,104350.0,0.04781187]
[1762869816059,0.5028565,104360.0,104350.0,0.14365757]
[1762869816359,0.5028565,104360.0,104350.0,0.04781187]
[1762869816764,0.5038565,104360.0,104350.0,0.04781187]
[1762869818764,0.5038565,104360.0,104350.0,0.11672492]
[1762869818960,0.5038565,104360.0,104350.0,0.13020492]
[1762869820359,0.79472974,104360.0,104350.0,0.00220187]
[1762869820554,0.74970974,104360.0,104350.0,3.84e-06]
[1762869820754,0.74970974,104360.0,104340.0,0.06891305]
[1762869820959,0.1408748,104340.0,104330.0,0.58285004]
[1762869821167,0.5008748,104340.0,104330.0,0.49672108]
[1762869821962,0.5111048,104340.0,104330.0,0.43763108]
[1762869822162,0.5111048,104340.0,104330.0,0.36871803]
[1762869822661,0.79174804,104340.0,104330.0,0.36871803]
[1762869822857,0.5111048,104340.0,104330.0,0.36871803]
[1762869823064,0.5111048,104340.0,104330.0,0.41432803]
[1762869823275,0.5008748,104340.0,104330.0,0.41532803]
[1762869823954,0.5008748,104340.0,104330.0,0.42880803]
[1762869824762,0.40502,104340.0,104330.0,0.52467203]
[1762869824968,0.5008748,104340.0,104330.0,0.49772108]
[1762869825170,0.5008748,104340.0,104330.0,0.42880803]
[1762869825564,0.40502,104340.0,104330.0,0.52467203]
[1762869825765,0.40502,104340.0,104330.0,0.59358508]
[1762869825964,0.5008748,104340.0,104330.0,0.59358508]
[1762869826560,0.5008748,104340.0,104330.0,0.49772108]
[1762869826765,0.5008748,104340.0,104330.0,0.59358508]
[1762869826967,0.40502,104340.0,104330.0,0.59358508]
[1762869827162,0.38233,104340.0,104330.0,0.59358508]
[1762869827465,0.36,104340.0,104330.0,0.87422832]
[1762869827660,0.36,104340.0,104330.0,1.11382832]
[1762869827860,0.00014384,104350.0,104340.0,0.1549448]
[1762869828076,0.32014384,104350.0,104340.0,0.50658514]
[1762869828873,0.32014384,104350.0,104340.0,0.2259419]
[1762869829066,0.41698944,104350.0,104340.0,0.2259419]
[1762869829774,0.32114384,104350.0,104340.0,0.2259419]
[1762869830277,0.41698944,104350.0,104340.0,0.2259419]
[1762869830873,0.41698944,104350.0,104340.0,0.41735901]
[1762869830874,0.43931944,104350.0,104340.0,0.41735901]
[1762869831074,0.46086944,104350.0,104340.0,0.41735901]
[1762869831281,0.46086944,104350.0,104340.0,0.2259419]
[1762869832268,0.32114384,104350.0,104340.0,0.2259419]
[1762869832462,0.32114384,104350.0,104340.0,0.1300871]
[1762869832463,0.43884944,104350.0,104340.0,0.1300871]
[1762869832775,0.46039944,104350.0,104340.0,0.2259419]
[1762869833172,0.32114384,104350.0,104340.0,0.41735901]
[1762869833773,0.28662953,104350.0,104340.0,0.4346889]
[1762869835680,0.28662953,104350.0,104340.0,0.24327179]
[1762869835869,0.28662953,104350.0,104340.0,0.4346889]
[1762869836678,0.38247513,104350.0,104340.0,0.4346889]
[1762869836980,0.28662953,104350.0,104340.0,0.4346889]
[1762869837181,0.28662953,104350.0,104340.0,0.24327179]
[1762869837375,0.28662953,104350.0,104340.0,0.4346889]
[1762869838373,0.38247513,104350.0,104340.0,0.24327179]
[1762869838579,0.28662953,104350.0,104340.0,0.4346889]
[1762869839179,0.28662953,104350.0,104340.0,0.58815994]
[1762869839374,0.14216024,104360.0,104350.0,0.1534356]
[1762869839575,0.47216024,104360.0,104350.0,0.79928949]
[1762869840574,0.47216024,104360.0,104350.0,0.60787238]
[1762869840771,0.47316024,104360.0,104350.0,0.60783238]
[1762869840978,0.47316024,104360.0,104350.0,0.42594803]
[1762869841181,0.47316024,104360.0,104350.0,0.49477613]
[1762869841480,0.47516024,104360.0,104350.0,0.49477613]
[1762869841880,0.47516024,104360.0,104350.0,0.59062173]
[1762869842580,0.47516024,104360.0,104350.0,0.52179363]
[1762869842773,0.35604384,104360.0,104350.0,0.71321074]
[1762869842970,0.35604384,104360.0,104350.0,0.79924949]
[1762869843282,0.33314384,104360.0,104350.0,0.79924949]
[1762869844682,0.33114384,104360.0,104350.0,0.79924949]
[1762869844884,0.33214384,104360.0,104350.0,0.79924949]
[1762869845580,0.47416024,104360.0,104350.0,0.58078246]
[1762869845794,0.29207651,104360.0,104350.0,1.29200642]
[1762869845988,0.1552235,104390.0,104380.0,0.04407]
[1762869846190,0.4852235,104390.0,104380.0,0.69966324]
[1762869846390,0.38941,104390.0,104380.0,0.69966324]
[1762869846588,0.38941,104390.0,104380.0,0.76845656]
[1762869846888,0.4852189,104390.0,104380.0,0.76845656]
[1762869848193,0.4852189,104390.0,104380.0,0.67263846]
[1762869848393,0.4852189,104390.0,104380.0,0.48122135]
[1762869848690,0.4852189,104390.0,104380.0,0.41242803]
[1762869848989,0.4862189,104390.0,104380.0,0.41242803]
[1762869849790,0.4862189,104390.0,104380.0,0.39066803]
[1762869850090,0.4862189,104390.0,104380.0,0.36831803]
[1762869850282,0.67763601,104390.0,104380.0,0.36831803]
[1762869850988,0.67763601,104390.0,104380.0,0.00219803]
[1762869851283,0.67763601,104390.0,104370.0,0.00014384]
[1762869851284,0.1552281,104380.0,104370.0,0.36434384]
[1762869851489,0.5052281,104380.0,104370.0,0.36654187]
[1762869852284,0.69664521,104380.0,104370.0,0.00234187]
[1762869852486,0.69664521,104380.0,104370.0,0.00014384]
[1762869853077,1.06284521,104380.0,104370.0,3.84e-06]
[1762869853312,0.1552464,104360.0,104350.0,0.57490892]
[1762869853486,0.04618,104360.0,104350.0,0.77533406]
[1762869853683,0.1552464,104360.0,104350.0,0.57710695]
[1762869854791,0.05941,104360.0,104350.0,0.58010695]
[1762869854989,0.05941,104360.0,104350.0,0.58310695]
[1762869855188,0.0229,104360.0,104350.0,0.78133406]
[1762869855389,0.15538664,104370.0,104360.0,0.04407]
[1762869855693,0.52538664,104370.0,104360.0,0.04626803]
[1762869856596,0.52538664,104370.0,104360.0,0.04826803]
[1762869856796,0.52442601,104370.0,104360.0,0.14410443]
[1762869857296,0.52442601,104370.0,104360.0,0.41571486]
[1762869857596,0.02304384,104370.0,104360.0,0.41571486]
[1762869857792,0.02304384,104370.0,104360.0,0.34692154]
[1762869857991,0.00014384,104370.0,104360.0,0.34692154]
[1762869858198,0.00014384,104370.0,104360.0,0.34892154]
[1762869858794,0.09597114,104370.0,104360.0,0.34892154]
[1762869859100,0.00014384,104370.0,104360.0,0.34892154]
[1762869859598,0.00014384,104370.0,104360.0,0.6744732]
[1762869860296,0.00014384,104370.0,104360.0,0.4349132]
[1762869860601,0.09597114,104370.0,104360.0,0.4349132]
[1762869860808,0.00014384,104370.0,104360.0,0.4349132]
[1762869861004,0.09597114,104370.0,104360.0,0.4349132]
[1762869861898,0.00014384,104370.0,104360.0,0.4349132]
[1762869862092,0.00014384,104370.0,104360.0,0.6744732]
[1762869862295,0.1090463,104390.0,104360.0,0.87571621]
[1762869862602,0.4607363,104390.0,104380.0,0.40790758]
[1762869862800,0.36492,104390.0,104380.0,0.41010561]
[1762869863202,0.32,104390.0,104380.0,0.41010561]
[1762869863805,0.4607289,104390.0,104380.0,0.41010561]
[1762869864507,0.32,104390.0,104380.0,0.34133324]
[1762869864707,0.32,104390.0,104380.0,0.4272987]
[1762869865307,0.321,104390.0,104380.0,0.4272987]
[1762869866701,0.321,104390.0,104380.0,0.6667787]
[1762869867005,0.00014384,104400.0,104390.0,0.0958089]
[1762869867205,0.00014384,104400.0,104390.0,1.0010295]
[1762869867402,0.00014384,104400.0,104390.0,1.1439309]
[1762869867610,0.00014384,104400.0,104390.0,1.30024092]
[1762869867805,0.00014384,104400.0,104390.0,1.49473524]
[1762869868110,0.00014384,104400.0,104390.0,1.73421524]
[1762869868300,0.00314384,104400.0,104390.0,1.58053626]
[1762869868499,0.00314384,104400.0,104390.0,2.02195337]
[1762869868701,0.00314384,104400.0,104390.0,1.90149359]
[1762869868902,0.01278,104420.0,104400.0,0.0957997]
[1762869869102,0.32278,104420.0,104410.0,0.7242435]
[1762869869308,0.32278,104420.0,104410.0,0.65560574]
[1762869869612,0.14278,104420.0,104410.0,1.13370641]
[1762869869800,0.14278,104420.0,104410.0,1.53950743]
[1762869870209,0.002,104420.0,104410.0,1.53950743]
[1762869870602,0.012,104420.0,104410.0,1.53950743]
[1762869870801,0.02478,104420.0,104410.0,1.54913115]
[1762869871111,0.02278,104420.0,104410.0,1.46433013]
[1762869871312,0.0677,104420.0,104410.0,0.41577569]
[1762869871498,0.0697,104420.0,104410.0,0.73389213]
[1762869871698,0.0697,104420.0,104410.0,0.73589213]
[1762869871906,0.1654814,104420.0,104410.0,0.64010153]
[1762869872104,0.1654814,104420.0,104410.0,0.38014175]
[1762869872305,0.1634814,104420.0,104410.0,0.47793225]
[1762869872511,0.1634814,104420.0,104410.0,0.66934936]
[1762869872705,0.0677,104420.0,104410.0,0.30302936]
[1762869872914,0.0677,104420.0,104410.0,0.66934936]
[1762869873912,0.0677,104420.0,104410.0,0.66834936]
[1762869874118,0.0677,104420.0,104410.0,0.66634936]
[1762869874813,0.02278,104420.0,104410.0,0.66534936]
[1762869875109,0.02278,104420.0,104410.0,0.92478936]
[1762869876216,0.02278,104420.0,104410.0,0.68534936]
[1762869876413,0.02278,104420.0,104410.0,0.92478936]
[1762869877316,0.1634814,104420.0,104410.0,0.66534936]
[1762869877512,0.1634814,104420.0,104410.0,0.29902936]
[1762869877714,0.1634814,104420.0,104410.0,0.66530936]
[1762869878413,0.1634814,104420.0,104410.0,0.66526936]
[1762869879118,0.0677,104420.0,104410.0,0.66526936]
[1762869879312,0.1634814,104420.0,104410.0,0.66526936]
[1762869882212,0.1634814,104420.0,104410.0,0.65564564]
[1762869882418,0.1634814,104420.0,104410.0,0.46422853]
[1762869882606,0.1634814,104420.0,104410.0,0.36843803]
[1762869882812,0.4134814,104420.0,104410.0,0.46422863]
[1762869883211,0.4134814,104420.0,104410.0,0.36843803]
[1762869883907,0.4144814,104420.0,104410.0,0.36843803]
[1762869884113,0.4154814,104420.0,104410.0,0.36843803]
[1762869887727,0.4154814,104420.0,104410.0,0.46422863]
[1762869887928,0.4154814,104420.0,104410.0,0.36843803]
[1762869889628,0.4154814,104420.0,104410.0,0.46422863]
[1762869890624,0.4154814,104420.0,104410.0,0.36843803]
[1762869891030,0.4154814,104420.0,104410.0,0.46422863]
[1762869891727,0.4154814,104420.0,104410.0,0.36843803]
[1762869892319,0.3197,104420.0,104410.0,0.46422863]
[1762869892524,0.3197,104420.0,104410.0,0.74464722]
[1762869893329,0.3197,104420.0,104410.0,0.81314989]
[1762869893733,0.3197,104420.0,104410.0,0.83314989]
[1762869894622,0.3197,104420.0,104410.0,0.81314989]
[1762869894831,0.4154814,104420.0,104410.0,0.81314989]
[1762869900136,0.4154814,104420.0,104410.0,0.5327313]
[1762869900323,0.4154814,104420.0,104410.0,0.0707007]
[1762869900529,0.4154814,104420.0,104410.0,0.4271007]
[1762869900723,0.4154814,104420.0,104410.0,0.35859803]
[1762869901535,0.4154814,104420.0,104410.0,0.3564]
[1762869902233,0.4154814,104420.0,104410.0,0.45438863]
[1762869902637,0.4154814,104420.0,104410.0,0.35859803]
[1762869902839,0.4154814,104420.0,104410.0,0.45438863]
[1762869903235,0.4154814,104420.0,104410.0,0.73480722]
[1762869903432,0.4154814,104420.0,104410.0,0.45438863]
[1762869903633,0.4154814,104420.0,104410.0,0.35859803]
[1762869904034,0.4154814,104420.0,104410.0,0.45438863]
[1762869904940,0.3197,104420.0,104410.0,0.45438863]
[1762869905140,0.4154814,104420.0,104410.0,0.73480722]
[1762869905342,0.4154814,104420.0,104410.0,0.45438863]
[1762869906341,0.3197,104420.0,104410.0,0.45438863]
[1762869906841,0.3197,104420.0,104410.0,0.5228913]
[1762869907537,0.4154814,104420.0,104410.0,0.5228913]
[1762869908629,0.4154814,104420.0,104410.0,0.4271007]
[1762869908833,0.4154814,104420.0,104410.0,0.36803803]
[1762869909137,0.69589999,104420.0,104410.0,0.36584]
[1762869909437,0.69589999,104420.0,104400.0,0.33098384]
[1762869909438,0.1532206,104410.0,104400.0,0.33098384]
[1762869909636,0.1532389,104390.0,104380.0,0.06850267]
[1762869909940,0.2132389,104390.0,104380.0,0.4367407]
[1762869910143,0.2132389,104390.0,104380.0,0.5325588]
[1762869910641,0.2132389,104390.0,104380.0,0.46405613]
[1762869911544,0.2132389,104390.0,104380.0,0.37023803]
[1762869911842,0.2132389,104390.0,104380.0,0.47773392]
[1762869912744,0.11743,104390.0,104380.0,0.47773392]
[1762869913040,0.11743,104390.0,104380.0,0.75815251]
[1762869913741,0.11943,104390.0,104380.0,0.75415251]
[1762869914041,0.2152389,104390.0,104380.0,0.47373392]
[1762869917946,0.2152389,104390.0,104380.0,0.54223659]
[1762869918444,0.2152389,104390.0,104380.0,0.37791582]
[1762869919043,0.2152389,104390.0,104380.0,0.44641849]
[1762869919242,0.2152389,104390.0,104380.0,0.5325588]
[1762869919444,0.5152389,104390.0,104380.0,0.5325588]
[1762869919847,0.5152389,104390.0,104380.0,0.36823803]
[1762869920146,0.4752389,104390.0,104380.0,0.46405613]
[1762869920336,0.4752389,104390.0,104380.0,0.37802062]
[1762869921042,0.4752389,104390.0,104380.0,0.47383872]
[1762869921243,0.4752389,104390.0,104380.0,0.36823803]
[1762869922945,0.4752389,104390.0,104380.0,0.47353261]
[1762869923349,0.5152389,104390.0,104380.0,0.37771451]
[1762869923546,0.5152389,104390.0,104380.0,0.36823803]
[1762869924049,0.5152389,104390.0,104380.0,0.37770203]
[1762869924251,0.5152389,104390.0,104380.0,0.47351973]
[1762869924545,0.5152385,104390.0,104380.0,0.5420224]
[1762869924748,0.5152385,104390.0,104380.0,0.47351973]
[1762869925153,0.5152385,104390.0,104380.0,0.5420224]
[1762869925652,0.5152385,104390.0,104380.0,0.82244099]
[1762869925653,0.06943,104390.0,104380.0,0.82244099]
[1762869925854,0.1652385,104390.0,104380.0,0.82244099]
[1762869926349,0.1652385,104390.0,104380.0,0.5420224]
[1762869926549,0.1652385,104390.0,104380.0,0.47351973]
[1762869926951,0.4552385,104390.0,104380.0,0.47351973]
[1762869928437,0.4552385,104390.0,104380.0,0.36823803]
[1762869929550,0.4552385,104390.0,104380.0,0.46405573]
[1762869929753,0.4552385,104390.0,104380.0,0.36823803]
[1762869930539,0.4552385,104390.0,104380.0,0.00219803]
[1762869932648,0.4552385,104390.0,104370.0,0.43456651]
[1762869932649,0.1529181,104380.0,104370.0,0.43456651]
[1762869932849,0.04405,104370.0,104360.0,0.06850267]
[1762869933155,0.5029273,104370.0,104360.0,0.36811803]
[1762869933358,0.1529456,104350.0,104340.0,1.12048882]
[1762869933553,0.0571,104350.0,104340.0,1.50860685]
[1762869933943,0.03407,104350.0,104340.0,1.78902544]
[1762869934342,0.0571,104350.0,104340.0,1.78902544]
[1762869934550,0.0571,104350.0,104340.0,1.79202544]
[1762869934954,0.0571,104350.0,104340.0,1.70622442]
[1762869935158,0.01305,104350.0,104340.0,1.77496452]
[1762869935450,0.01319384,104360.0,104350.0,0.0958456]
[1762869935649,0.00014384,104360.0,104350.0,0.71812812]
[1762869935850,0.00014384,104360.0,104350.0,0.80392914]
[1762869936250,0.00014384,104360.0,104350.0,1.11812812]
[1762869936453,0.00014384,104360.0,104350.0,1.35768812]
[1762869936848,0.01305,104370.0,104350.0,1.50047315]
[1762869937054,0.01305,104370.0,104360.0,0.81096884]
[1762869937257,0.03407,104370.0,104360.0,0.81316687]
[1762869938457,0.0571,104370.0,104360.0,0.76541302]
[1762869938660,0.0571,104370.0,104360.0,0.76641302]
[1762869939957,0.03407,104370.0,104360.0,0.76641302]
[1762869940256,0.01305,104370.0,104360.0,0.76641302]
[1762869940851,0.03407,104370.0,104360.0,0.76641302]
[1762869941253,0.01305,104370.0,104360.0,0.76641302]
[1762869941852,0.03407,104370.0,104360.0,0.76641302]
[1762869942152,0.1529273,104370.0,104360.0,0.76641302]
[1762869942961,0.1529273,104370.0,104360.0,0.74641302]
[1762869944864,0.0571,104370.0,104360.0,0.74641302]
[1762869946153,0.0571,104370.0,104360.0,0.83221404]
[1762869946460,0.1529273,104370.0,104360.0,0.83221404]
[1762869946851,0.1529273,104370.0,104360.0,0.81527294]
[1762869947449,0.1529273,104370.0,104360.0,0.74641302]
[1762869947653,0.0571,104370.0,104360.0,0.74641302]
[1762869947860,0.0571,104370.0,104360.0,0.74541302]
[1762869948462,0.0571,104370.0,104360.0,0.74441302]
[1762869948656,0.0571,104370.0,104360.0,0.76441302]
[1762869948850,0.01305,104370.0,104360.0,0.76441302]
[1762869949056,0.01305,104370.0,104360.0,0.99447679]
[1762869949253,0.01305,104370.0,104360.0,1.20867577]
[1762869949458,0.03421384,104380.0,104370.0,0.0958273]
[1762869949664,0.38565384,104380.0,104370.0,0.46452484]
[1762869950666,0.34319384,104380.0,104370.0,0.46452484]
[1762869950964,0.34319384,104380.0,104370.0,0.28926459]